bitfinex-derivatives/quotes_BNBF0:USTF0_20251219
["timestamp","ask_amount","ask_price","bid_price","bid_amount"]
[1766154800802,1.17373502,847.19,845.25,0.88403299]
[1766154801001,1.17373502,847.04,845.1,0.88403299]
[1766154801301,1.17373502,846.94,845.0,0.88403299]
[1766154801506,1.17373502,846.95,844.99,0.88403299]
[1766154802404,1.17373502,846.86,844.9,0.88403299]
[1766154802607,1.17373502,846.86,844.89,0.88403299]
[1766154803408,1.17373502,846.84,844.86,0.88403299]
[1766154804105,1.17373502,846.84,844.85,0.88403299]
[1766154804303,1.17373502,846.83,844.86,0.88403299]
[1766154804508,1.17373502,846.84,844.85,0.88403299]
[1766154804810,1.17373502,846.82,844.83,0.88403299]
[1766154805108,1.17373502,846.76,844.76,0.88403299]
[1766154805507,1.17373502,846.69,844.68,0.88403299]
[1766154806211,1.17373502,846.68,844.69,0.88403299]
[1766154806414,1.17373502,846.66,844.64,0.88403299]
[1766154806608,1.17373502,846.59,844.57,0.88403299]
[1766154806907,1.17373502,846.52,844.54,0.20582582]
[1766154807309,1.17373502,846.5,844.54,0.20582582]
[1766154807508,1.17373502,846.44,844.54,0.20582582]
[1766154808207,1.17373502,846.42,844.54,0.20582582]
[1766154808412,1.17373502,846.44,844.54,0.20582582]
[1766154809213,1.17373502,846.38,844.54,0.20582582]
[1766154809414,1.17373502,846.44,844.54,0.20582582]
[1766154809612,2.93699504,847.2,844.54,0.20582582]
[1766154809613,1.17373502,846.46,844.54,0.20582582]
[1766154809914,1.17373502,846.54,844.54,0.20582582]
[1766154810214,1.17373502,846.55,844.54,0.20582582]
[1766154811115,1.17373502,846.6,844.54,0.20582582]
[1766154811410,1.17373502,846.7,844.62,0.88403299]
[1766154811611,1.17373502,846.73,844.65,0.88403299]
[1766154812011,2.93699504,847.49,844.66,0.88403299]
[1766154812012,1.17373502,846.74,844.66,0.88403299]
[1766154812218,1.17373502,846.79,844.71,0.88403299]
[1766154812517,1.17373502,846.87,844.82,0.88403299]
[1766154813419,1.17373502,846.85,844.84,0.88403299]
[1766154814321,1.76941924,847.0,844.54,0.20582582]
[1766154814322,1.17373502,846.84,844.85,0.88403299]
[1766154815120,1.17373502,846.79,844.81,0.88403299]
[1766154815323,1.17373502,846.78,844.83,0.88403299]
[1766154815624,1.17373502,846.84,844.89,0.88403299]
[1766154816322,1.17373502,846.82,844.9,0.88403299]
[1766154817019,1.17373502,846.77,844.85,0.88403299]
[1766154817219,1.17373502,846.72,844.82,0.88403299]
[1766154817624,0.01092524,847.57,844.79,0.88403299]
[1766154817625,1.17373502,846.69,844.79,0.88403299]
[1766154818326,1.17373502,846.68,844.81,0.88403299]
[1766154819324,1.17373502,846.67,844.83,0.88403299]
[1766154819921,1.17373502,846.77,844.93,0.88403299]
[1766154820320,1.17373502,846.76,844.96,0.88403299]
[1766154820924,1.17373502,846.8,845.0,0.88403299]
[1766154822426,1.17373502,846.8,845.01,0.88403299]
[1766154826132,1.17373502,846.79,845.01,0.88403299]
[1766154826327,1.17373502,846.72,844.93,0.88403299]
[1766154827328,1.17373502,846.72,844.92,0.88403299]
[1766154828836,1.76941924,846.87,844.54,0.20582582]
[1766154828837,1.17373502,846.69,844.89,0.88403299]
[1766154830236,1.17373502,846.7,844.88,0.88403299]
[1766154830635,1.17373502,846.7,844.89,0.88403299]
[1766154831338,2.93699504,847.46,844.54,0.20582582]
[1766154831339,1.17373502,846.76,844.94,0.88403299]
[1766154833136,1.17373502,846.75,844.94,0.88403299]
[1766154833340,1.17373502,846.72,844.91,0.88403299]
[1766154834337,1.17373502,846.72,844.92,0.88403299]
[1766154835641,1.17373502,846.65,844.85,0.88403299]
[1766154836338,1.17373502,846.64,844.85,0.88403299]
[1766154836843,1.17373502,846.6,844.8,0.88403299]
[1766154837041,1.17373502,846.57,844.77,0.88403299]
[1766154837339,1.17373502,846.43,844.63,0.88403299]
[1766154837642,1.17373502,846.43,844.62,0.88403299]
[1766154837843,1.17373502,846.42,844.61,0.88403299]
[1766154838240,1.17373502,846.33,844.54,0.20582582]
[1766154838543,1.17373502,846.32,844.54,0.20582582]
[1766154838845,1.17373502,846.31,844.54,0.20582582]
[1766154839240,1.17373502,846.22,844.54,0.20582582]
[1766154839440,1.17373502,846.23,844.54,0.20582582]
[1766154839844,1.17373502,846.24,844.54,0.20582582]
[1766154841142,1.17373502,846.25,844.54,0.20582582]
[1766154841345,2.93699504,847.0,844.54,0.20582582]
[1766154841346,1.17373502,846.28,844.54,0.20582582]
[1766154842141,1.76941924,846.43,844.54,0.20582582]
[1766154842142,1.17373502,846.47,844.61,0.88403299]
[1766154842345,1.17373502,846.55,844.69,0.88403299]
[1766154842544,1.17373502,846.56,844.69,0.88403299]
[1766154843346,1.17373502,846.55,844.69,0.88403299]
[1766154844147,1.17373502,846.56,844.69,0.88403299]
[1766154844342,1.17373502,846.55,844.7,0.88403299]
[1766154845346,1.17373502,846.57,844.72,0.88403299]
[1766154845647,1.17373502,846.63,844.78,0.88403299]
[1766154846144,1.17373502,846.62,844.78,0.88403299]
[1766154846347,1.17373502,846.58,844.75,0.88403299]
[1766154846541,1.17373502,846.5,844.67,0.88403299]
[1766154846944,1.17373502,846.26,844.54,0.20582582]
[1766154848142,1.17373502,846.3,844.54,0.20582582]
[1766154848347,1.17373502,846.36,844.54,0.20582582]
[1766154850444,1.17373502,846.35,844.54,0.20582582]
[1766154851248,1.17373502,846.34,844.54,1.08348658]
[1766154852349,1.17373502,846.26,844.54,0.20582582]
[1766154852646,1.17373502,846.24,844.54,0.20582582]
[1766154853350,1.17373502,846.22,844.54,0.20582582]
[1766154854450,1.17373502,846.21,844.54,0.20582582]
[1766154855448,1.17373502,846.2,844.55,0.87766076]
[1766154855651,1.17373502,846.39,844.74,0.87766076]
[1766154855859,1.17373502,846.42,844.77,0.87766076]
[1766154856449,1.17373502,846.4,844.8,0.87766076]
[1766154856855,1.17373502,846.27,844.66,0.87766076]
[1766154857153,1.76941924,846.42,843.75,2.9373681]
[1766154857154,1.17373502,846.23,844.62,0.87766076]
[1766154857353,1.17373502,846.23,844.6,0.205796]
[1766154857354,1.17373502,846.29,844.73,0.87766076]
[1766154857550,1.17373502,846.3,844.74,0.87766076]
[1766154858150,1.17373502,846.37,844.81,0.87766076]
[1766154858351,1.17373502,846.35,844.83,0.87766076]
[1766154858578,1.17373502,846.35,844.82,0.87766076]
[1766154859250,1.17373502,846.33,844.84,0.87766076]
[1766154859450,1.17373502,846.34,844.84,0.87766076]
[1766154859650,1.17373502,846.38,844.88,0.87766076]
[1766154859853,1.17373502,846.4,844.91,0.87766076]
[1766154860049,1.17373502,846.47,844.98,0.87766076]
[1766154860254,1.17373502,846.47,844.99,0.87766076]
[1766154860554,1.17373502,846.46,845.0,0.87766076]
[1766154861055,1.17373502,846.48,845.03,0.87766076]
[1766154861250,1.17373502,846.48,845.04,0.87766076]
[1766154861451,1.17373502,846.51,845.07,0.87766076]
[1766154862154,1.17373502,846.53,845.09,0.87766076]
[1766154862351,1.17373502,846.53,845.1,0.87766076]
[1766154862551,1.17373502,846.54,845.1,0.87766076]
[1766154862758,1.17373502,846.6,845.17,0.87766076]
[1766154863164,1.17373502,846.6,845.16,0.87766076]
[1766154866766,0.01427302,847.45,844.99,0.87766076]
[1766154866767,1.17373502,846.43,844.99,0.87766076]
[1766154867366,1.17373502,846.34,844.9,0.87766076]
[1766154868364,1.17373502,846.4,844.96,0.87766076]
[1766154869168,1.17373502,846.4,844.97,0.87766076]
[1766154869468,1.17373502,846.39,844.97,0.87766076]
[1766154871366,1.17373502,846.46,845.04,0.87766076]
[1766154871871,1.17373502,846.48,845.06,0.87766076]
[1766154872365,1.17373502,846.48,845.07,0.87766076]
[1766154873370,1.17373502,846.57,845.15,0.87766076]
[1766154873766,1.17373502,846.63,845.22,0.87766076]
[1766154876370,1.17373502,846.63,845.21,0.87766076]
[1766154877373,1.17373502,846.64,845.21,0.87766076]
[1766154877869,1.17373502,846.71,845.28,0.87766076]
[1766154878074,1.17373502,846.73,845.3,0.87766076]
[1766154878271,1.17373502,846.75,845.32,0.87766076]
[1766154878676,1.17373502,846.85,845.42,0.87766076]
[1766154878978,1.17373502,846.86,845.42,0.87766076]
[1766154879274,1.17373502,846.86,845.41,0.87766076]
[1766154879476,1.76941924,847.02,845.41,0.87766076]
[1766154879477,1.17373502,846.87,845.41,0.87766076]
[1766154880072,1.17373502,846.84,845.38,0.87766076]
[1766154880374,1.17373502,846.82,845.34,0.87766076]
[1766154880576,1.17373502,846.72,845.24,0.87766076]
[1766154882279,1.17373502,846.73,845.24,0.87766076]
[1766154882781,1.17373502,846.72,845.24,0.87766076]
[1766154882982,1.17373502,846.73,845.24,0.87766076]
[1766154884179,1.17373502,846.72,845.24,0.87766076]
[1766154884383,1.17373502,846.73,845.24,0.87766076]
[1766154884585,1.17373502,846.7,845.21,0.87766076]
[1766154884786,1.17373502,846.64,845.14,0.87766076]
[1766154884986,1.17373502,846.61,845.11,0.87766076]
[1766154885185,1.17373502,846.6,845.12,0.87766076]
[1766154885385,1.17373502,846.52,845.03,0.87766076]
[1766154886083,1.17373502,846.51,845.02,0.87766076]
[1766154886284,1.17373502,846.43,844.95,0.87766076]
[1766154886484,1.17373502,846.44,844.95,0.87766076]
[1766154887287,1.17373502,846.43,844.95,0.87766076]
[1766154889290,1.17373502,846.4,844.92,0.87766076]
[1766154889588,1.17373502,846.27,844.79,0.87766076]
[1766154889789,1.17373502,846.27,844.78,0.87766076]
[1766154889989,1.17373502,846.24,844.75,0.87766076]
[1766154890388,1.17373502,846.11,844.62,0.87766076]
[1766154890590,1.17373502,845.97,844.48,0.87766076]
[1766154890888,1.17373502,845.92,844.42,0.87766076]
[1766154891288,1.17373502,845.92,844.21,0.20584408]
[1766154891289,1.17373502,846.01,844.49,0.87766076]
[1766154891890,1.17373502,846.08,844.56,0.87766076]
[1766154892192,1.17373502,846.13,844.6,0.87766076]
[1766154892690,1.17373502,846.18,844.65,0.87766076]
[1766154894392,1.17373502,846.24,844.7,0.87766076]
[1766154895292,1.17373502,846.24,844.71,0.87766076]
[1766154895492,1.17373502,846.24,844.7,0.87766076]
[1766154895989,1.17373502,846.31,844.77,0.87766076]
[1766154896395,1.17373502,846.37,844.83,0.87766076]
[1766154897090,1.17373502,846.36,844.82,0.87766076]
[1766154897495,1.17373502,846.3,844.76,0.87766076]
[1766154897990,1.17373502,846.27,844.73,0.87766076]
[1766154898193,1.17373502,846.23,844.7,0.87766076]
[1766154898396,1.17373502,846.23,844.69,0.87766076]
[1766154898895,1.17373502,846.23,844.7,0.87766076]
[1766154900494,1.17373502,846.29,844.76,0.87766076]
[1766154900692,1.17373502,846.31,844.78,0.87766076]
[1766154900891,4.11179306,847.3,844.21,0.20584408]
[1766154900892,1.17373502,846.4,844.87,0.87766076]
[1766154901291,1.17373502,846.4,844.57,1.75036874]
[1766154901292,1.17373502,846.57,845.05,0.87766076]
[1766154901494,1.17373502,846.62,845.1,0.87766076]
[1766154901695,1.17373502,846.74,845.22,0.87766076]
[1766154901895,1.17373502,846.74,845.23,0.87766076]
[1766154902095,1.17373502,846.74,845.22,0.87766076]
[1766154902396,1.17373502,846.59,845.07,0.87766076]
[1766154903192,1.17373502,846.6,845.07,0.87766076]
[1766154903395,1.17373502,846.66,845.13,0.87766076]
[1766154904099,1.17373502,846.65,845.12,0.87766076]
[1766154904296,1.17373502,846.66,845.12,0.87766076]
[1766154904494,1.17373502,846.65,845.12,0.87766076]
[1766154905000,1.17373502,846.62,845.09,0.87766076]
[1766154905197,1.17373502,846.59,845.05,0.87766076]
[1766154905395,1.17373502,846.45,844.92,0.87766076]
[1766154905594,2.93699504,847.35,844.21,0.20584408]
[1766154905595,1.17373502,846.44,844.91,0.87766076]
[1766154908199,1.17373502,846.44,844.92,0.87766076]
[1766154908495,1.17373502,846.43,844.92,0.87766076]
[1766154909899,1.17373502,846.44,844.93,0.87766076]
[1766154910399,1.17373502,846.44,844.94,0.87766076]
[1766154911401,1.17373502,846.43,844.94,0.87766076]
[1766154912901,1.17373502,846.44,844.95,0.87766076]
[1766154913104,1.17373502,846.46,844.98,0.87766076]
[1766154913305,1.17373502,846.46,844.82,1.16647943]
[1766154913306,0.20572057,846.24,845.06,0.87766076]
[1766154913505,0.20572057,846.24,845.13,0.87766076]
[1766154913705,0.20572057,846.24,845.21,0.87766076]
[1766154915202,0.20572057,846.24,845.22,0.87766076]
[1766154916102,0.20572057,846.24,845.21,0.87766076]
[1766154917106,1.17373502,846.66,845.21,0.87766076]
[1766154917306,0.20568105,846.32,845.25,0.87766076]
[1766154917905,0.20568105,846.32,845.24,0.87766076]
[1766154918107,0.20568105,846.32,845.2,0.87766076]
[1766154918304,0.20568105,846.32,845.11,0.87766076]
[1766154919509,0.20568105,846.32,844.92,0.87766076]
[1766154920207,0.20568105,846.32,845.0,0.87766076]
[1766154920709,0.20568105,846.32,845.07,0.87766076]
[1766154922611,0.20568105,846.32,845.08,0.87766076]
[1766154922906,0.20568105,846.32,845.15,0.87766076]
[1766154923110,0.20568105,846.32,845.17,0.87766076]
[1766154923304,0.20568105,846.32,844.87,1.75036874]
[1766154923305,0.20568105,846.32,845.21,0.87766076]
[1766154923611,1.17373502,846.79,845.35,0.87766076]
[1766154923811,0.2056695,846.42,845.36,0.87766076]
[1766154924305,0.2056695,846.42,845.42,0.87766076]
[1766154924510,0.2056695,846.42,845.41,0.87766076]
[1766154925309,0.2056695,846.42,845.4,0.87766076]
[1766154926809,0.2056695,846.42,845.39,0.87766076]
[1766154928410,0.2056695,846.42,845.38,0.87766076]
[1766154929307,0.2056695,846.42,845.37,0.87766076]
[1766154929811,1.17373502,846.89,845.36,0.87766076]
[1766154930014,0.20564337,846.43,845.36,0.87766076]
[1766154930511,0.20564337,846.43,845.24,0.87766076]
[1766154930712,0.20564337,846.43,845.18,0.87766076]
[1766154931216,0.20564337,846.43,845.17,0.87766076]
[1766154932618,0.20564337,846.43,845.18,0.87766076]
[1766154933118,0.20564337,846.43,845.17,0.87766076]
[1766154933318,0.20564337,846.43,845.09,0.87766076]
[1766154934418,0.20564337,846.43,845.07,0.87766076]
[1766154934620,0.20564337,846.43,845.06,0.87766076]
[1766154935319,0.20564337,846.43,845.03,0.87766076]
[1766154938422,0.20564337,846.43,845.04,0.87766076]
[1766154938719,0.20564337,846.43,844.96,0.87766076]
[1766154939619,0.20564337,846.43,844.97,0.87766076]
[1766154939822,0.20564337,846.43,845.11,0.87766076]
[1766154940018,0.20564337,846.43,845.12,0.87766076]
[1766154941124,0.20564337,846.43,845.26,0.87766076]
[1766154941625,0.20564337,846.43,845.28,0.87766076]
[1766154941825,1.17373502,846.84,845.33,0.87766076]
[1766154942025,1.17373502,846.84,845.18,1.16647943]
[1766154942026,1.17373502,846.86,845.35,0.87766076]
[1766154942223,0.2056458,846.53,845.35,0.87766076]
[1766154943426,0.2056458,846.53,845.34,0.87766076]
[1766154945623,0.2056458,846.53,845.36,0.87766076]
[1766154946327,0.2056458,846.53,845.44,0.87766076]
[1766154946927,0.2056458,846.53,845.43,0.87766076]
[1766154947126,0.2056458,846.53,845.4,0.87766076]
[1766154947330,0.2056458,846.53,845.32,0.87766076]
[1766154947529,0.2056458,846.53,845.28,0.87766076]
[1766154947725,0.2056458,846.53,845.27,0.87766076]
[1766154947932,0.2056458,846.53,845.24,0.87766076]
[1766154951232,0.2056458,846.53,845.27,0.87766076]
[1766154952128,0.2056458,846.53,845.28,0.87766076]
[1766154953232,0.2056458,846.53,845.29,0.87766076]
[1766154954230,0.2056458,846.53,845.31,0.87766076]
[1766154954432,0.2056458,846.53,845.36,0.87766076]
[1766154954934,0.2056458,846.53,845.39,0.87766076]
[1766154955135,0.2056458,846.53,845.4,0.87766076]
[1766154955329,0.2056458,846.53,845.41,0.87766076]
[1766154955732,0.2056458,846.53,845.46,0.87766076]
[1766154955934,0.2056458,846.53,845.5,0.87766076]
[1766154956133,0.2056458,846.53,845.51,0.87766076]
[1766154956436,0.2056458,846.53,845.5,0.87766076]
[1766154957233,1.17373502,846.92,845.51,0.87766076]
[1766154957435,0.01164978,847.71,845.62,0.87766076]
[1766154957436,0.20559781,846.73,845.62,0.87766076]
[1766154957632,0.20559781,846.73,845.66,0.87766076]
[1766154957838,1.17373502,847.13,845.71,0.87766076]
[1766154958039,0.20557109,846.83,845.71,0.87766076]
[1766154958234,0.20557109,846.83,845.72,0.87766076]
[1766154958439,0.20557109,846.83,845.71,0.87766076]
[1766154959140,0.20557109,846.83,845.63,0.87766076]
[1766154959340,0.20557109,846.83,845.47,1.16647943]
[1766154959341,0.20557109,846.83,845.62,0.87766076]
[1766154961342,0.20557109,846.83,845.58,0.87766076]
[1766154962845,0.20557109,846.83,845.67,0.87766076]
[1766154963243,0.20557109,846.83,845.66,0.87766076]
[1766154963943,0.20557109,846.83,845.61,0.87766076]
[1766154964244,0.20557109,846.83,845.6,0.87766076]
[1766154964847,0.20557109,846.83,845.63,0.87766076]
[1766154965049,0.20557109,846.83,845.67,0.87766076]
[1766154965444,1.17373502,847.16,844.82,0.01513862]
[1766154965445,1.17373502,847.25,845.76,0.87766076]
[1766154965849,0.20554985,846.92,845.76,0.87766076]
[1766154966348,0.20554985,846.92,845.75,0.87766076]
[1766154966949,0.20554985,846.92,845.73,0.87766076]
[1766154967249,0.20554985,846.92,845.63,0.87766076]
[1766154967650,0.20554985,846.92,845.58,0.87766076]
[1766154967848,0.20554985,846.92,845.57,0.87766076]
[1766154968348,1.17373502,846.87,845.37,0.87766076]
[1766154969349,1.17373502,846.79,845.29,0.87766076]
[1766154969954,1.17373502,846.79,845.3,0.87766076]
[1766154970455,1.17373502,846.78,845.3,0.87766076]
[1766154970952,1.17373502,846.69,845.21,0.87766076]
[1766154971453,1.17373502,846.69,844.91,1.75036874]
[1766154971454,1.17373502,846.56,845.1,0.87766076]
[1766154971953,1.17373502,846.53,845.07,0.87766076]
[1766154972149,1.17373502,846.53,845.06,0.87766076]
[1766154972350,1.17373502,846.48,845.02,0.87766076]
[1766154975259,1.17373502,846.49,845.01,0.87766076]
[1766154975759,1.17373502,846.47,844.99,0.87766076]
[1766154975956,1.17373502,846.42,844.94,0.87766076]
[1766154976356,1.17373502,846.43,844.94,0.87766076]
[1766154976558,1.17373502,846.43,844.93,0.87766076]
[1766154976762,1.17373502,846.36,844.87,0.87766076]
[1766154977159,1.17373502,846.36,844.86,0.87766076]
[1766154977363,1.17373502,846.37,844.85,0.87766076]
[1766154977763,1.17373502,846.34,844.82,0.87766076]
[1766154977961,1.17373502,846.27,844.75,0.87766076]
[1766154978465,1.17373502,846.28,844.74,0.87766076]
[1766154978665,1.17373502,846.25,844.71,0.87766076]
[1766154978865,1.17373502,846.25,844.7,0.87766076]
[1766154979267,1.17373502,846.26,844.68,0.87766076]
[1766154979567,1.17373502,845.95,844.38,0.87766076]
[1766154980263,1.17373502,845.98,844.34,0.87766076]
[1766154980665,1.17373502,845.95,844.31,0.87766076]
[1766154980864,1.17373502,845.95,844.26,0.87766076]
[1766154981167,1.17373502,845.9,844.26,0.87766076]
[1766154981467,2.93699504,846.66,844.22,0.87766076]
[1766154981468,1.17373502,845.94,844.22,0.87766076]
[1766154981663,0.20554985,846.92,844.21,0.20584408]
[1766154981664,1.17373502,846.03,844.31,0.87766076]
[1766154981967,1.17373502,846.14,844.43,0.87766076]
[1766154982368,1.17373502,846.16,844.41,0.87766076]
[1766154983465,1.17373502,846.2,844.41,0.87766076]
[1766154983871,1.17373502,846.25,844.46,0.87766076]
[1766154984170,1.17373502,846.31,844.52,0.87766076]
[1766154984369,1.17373502,846.32,844.51,0.87766076]
[1766154985066,1.17373502,846.39,844.58,0.87766076]
[1766154985270,1.17373502,846.39,844.57,0.87766076]
[1766154985469,1.17373502,846.4,844.57,0.87766076]
[1766154985972,1.17373502,846.56,844.74,0.87766076]
[1766154986371,1.17373502,846.56,844.73,0.87766076]
[1766154986971,1.17373502,846.57,844.73,0.87766076]
[1766154987972,1.17373502,846.58,844.75,0.87766076]
[1766154988373,1.17373502,846.72,844.88,0.87766076]
[1766154989273,1.17373502,846.72,844.89,0.87766076]
[1766154989569,1.17373502,846.72,844.88,0.87766076]
[1766154989772,1.17373502,846.72,844.89,0.87766076]
[1766154992774,1.17373502,846.68,844.85,0.87766076]
[1766154995080,1.17373502,846.75,844.92,0.87766076]
[1766154995378,1.17373502,846.84,845.01,0.87766076]
[1766154995579,1.17373502,846.85,845.02,0.87766076]
[1766154996079,1.17373502,846.85,845.05,0.87766076]
[1766154996279,0.20554985,846.92,845.19,0.87766076]
[1766154997275,0.20554985,846.92,844.89,1.75036874]
[1766154997276,0.20554985,846.92,845.31,0.87766076]
[1766154997482,0.20554985,846.92,845.37,0.87766076]
[1766154997780,0.20554985,846.92,845.4,0.87766076]
[1766154998375,0.20554985,846.92,845.25,1.16647943]
[1766154998376,0.20554985,846.92,845.39,0.87766076]
[1766154999182,0.20554985,846.92,845.33,0.87766076]
[1766154999779,0.20554985,846.92,844.48,0.00872555]
[1766154999780,0.20554985,846.92,845.27,0.87766076]
[1766155000882,0.20554985,846.92,845.13,0.87766076]
[1766155001084,0.20554985,846.92,845.11,0.87766076]
[1766155001279,0.20554985,846.92,845.1,0.87766076]
[1766155001481,0.20554985,846.92,845.11,0.87766076]
[1766155002778,0.20554985,846.92,844.26,0.01187906]
[1766155002779,0.20554985,846.92,845.19,0.87766076]
[1766155003283,0.20554985,846.92,845.25,0.87766076]
[1766155004190,0.20554985,846.92,845.27,0.87766076]
[1766155004481,0.20554985,846.92,845.33,0.87766076]
[1766155004983,0.20554985,846.92,845.38,0.87766076]
[1766155005287,0.20554985,846.92,845.5,0.87766076]
[1766155005483,0.20554985,846.92,845.49,0.87766076]
[1766155006388,0.20554985,846.92,845.48,0.87766076]
[1766155007084,0.20554985,846.92,845.45,0.87766076]
[1766155007389,0.20554985,846.92,845.44,0.87766076]
[1766155008485,0.20554985,846.92,845.36,0.87766076]
[1766155008986,0.20554985,846.92,845.3,0.87766076]
[1766155009585,0.20554985,846.92,845.29,0.87766076]
[1766155010189,0.20554985,846.92,845.3,0.87766076]
[1766155010389,0.20554985,846.92,845.29,0.87766076]
[1766155011285,0.20554985,846.92,845.2,0.87766076]
[1766155011586,1.17373502,847.13,845.2,0.87766076]
[1766155012290,1.17373502,847.05,845.13,0.87766076]
[1766155012487,1.17373502,847.05,845.12,0.87766076]
[1766155012986,1.17373502,847.04,845.11,0.87766076]
[1766155013290,1.17373502,847.04,845.12,0.87766076]
[1766155013490,1.17373502,847.04,845.11,0.87766076]
[1766155014092,1.17373502,847.05,845.12,0.87766076]
[1766155014393,1.17373502,847.11,845.18,0.87766076]
[1766155015192,1.17373502,847.1,845.18,0.87766076]
[1766155015389,1.17373502,847.11,845.17,0.87766076]
[1766155015791,0.20564155,846.63,845.17,0.87766076]
[1766155015993,0.20564155,846.63,845.11,0.87766076]
[1766155016397,0.20564155,846.63,845.0,0.87766076]
[1766155017196,0.20564155,846.63,844.99,0.87766076]
[1766155017396,0.20564155,846.63,845.0,0.87766076]
[1766155018501,0.20564155,846.63,845.01,0.87766076]
[1766155018896,0.20564155,846.63,845.0,0.87766076]
[1766155019203,0.20564155,846.63,845.01,0.87766076]
[1766155020703,0.20564155,846.63,844.98,0.87766076]
[1766155020900,0.20564155,846.63,844.95,0.87766076]
[1766155021100,0.20564155,846.63,844.84,0.87766076]
[1766155021304,0.20564155,846.63,844.78,0.87766076]
[1766155021603,0.20564155,846.63,844.75,0.87766076]
[1766155021802,0.20564155,846.63,844.74,0.87766076]
[1766155022099,1.17373502,846.53,844.65,0.20564155]
[1766155022302,1.17373502,846.52,844.65,0.20564155]
[1766155022603,1.17373502,846.53,844.65,0.20564155]
[1766155023498,1.17373502,846.52,844.65,0.20564155]
[1766155024006,1.17373502,846.47,844.65,0.20564155]
[1766155024204,1.17373502,846.32,844.41,0.87766076]
[1766155024404,1.17373502,846.17,844.42,0.20581973]
[1766155024604,1.17373502,846.02,844.42,0.20581973]
[1766155024805,1.17373502,846.02,844.11,0.87766076]
[1766155025005,1.17373502,846.02,844.28,0.20588183]
[1766155025403,1.17373502,846.03,844.28,0.20588183]
[1766155026206,1.17373502,846.12,844.28,0.20588183]
[1766155026603,1.17373502,846.21,844.28,0.20588183]
[1766155026809,1.17373502,846.22,844.28,0.20588183]
[1766155027009,1.17373502,846.21,844.28,0.20588183]
[1766155027306,1.17373502,846.22,844.28,0.20588183]
[1766155029110,1.17373502,846.41,844.44,0.87766076]
[1766155029910,1.17373502,846.31,844.34,0.87766076]
[1766155030214,1.17373502,846.28,844.3,0.87766076]
[1766155030411,1.17373502,846.28,844.29,0.87766076]
[1766155031410,1.17373502,846.29,844.28,1.08354259]
[1766155032414,1.17373502,846.35,844.34,0.87766076]
[1766155032614,1.17373502,846.36,844.35,0.87766076]
[1766155033010,1.17373502,846.36,844.34,0.87766076]
[1766155033213,1.17373502,846.37,844.34,0.87766076]
[1766155034310,1.17373502,846.37,844.33,0.87766076]
[1766155034714,1.17373502,846.39,844.35,0.87766076]
[1766155035311,1.17373502,846.4,844.35,0.87766076]
[1766155036314,1.17373502,846.4,844.34,0.87766076]
[1766155038118,1.17373502,846.42,844.36,0.87766076]
[1766155038715,1.17373502,846.52,844.46,0.87766076]
[1766155039317,1.17373502,846.55,844.49,0.87766076]
[1766155040216,1.17373502,846.54,844.5,0.87766076]
[1766155041320,1.17373502,846.51,844.5,0.87766076]
[1766155041522,1.17373502,846.47,844.45,0.87766076]
[1766155042219,1.17373502,846.47,844.46,0.87766076]
[1766155042423,1.17373502,846.49,844.48,0.87766076]
[1766155042624,1.17373502,846.51,844.5,0.87766076]
[1766155043023,0.20564155,846.63,844.53,0.87766076]
[1766155043024,1.17373502,846.54,844.53,0.87766076]
[1766155043324,1.17373502,846.62,844.63,0.87766076]
[1766155043822,0.20564155,846.63,844.77,0.87766076]
[1766155044025,0.20564155,846.63,844.78,0.87766076]
[1766155044321,0.20564155,846.63,844.28,0.20588183]
[1766155044322,0.20564155,846.63,844.96,0.87766076]
[1766155044521,0.20564155,846.63,844.97,0.87766076]
[1766155044921,0.20564155,846.63,845.0,0.87766076]
[1766155045320,0.20564155,846.63,845.06,0.87766076]
[1766155046225,0.20564155,846.63,845.08,0.87766076]
[1766155046422,0.20564155,846.63,845.14,0.87766076]
[1766155047326,0.20564155,846.63,845.13,0.87766076]
[1766155048022,0.20564155,846.63,845.1,0.87766076]
[1766155048428,0.20564155,846.63,845.07,0.87766076]
[1766155048625,0.20564155,846.63,845.05,0.87766076]
[1766155048930,0.20564155,846.63,844.92,0.87766076]
[1766155049127,0.20564155,846.63,844.91,0.87766076]
[1766155052832,0.20564155,846.63,844.86,0.87766076]
[1766155053236,0.20564155,846.63,845.06,0.87766076]
[1766155053837,0.20564155,846.63,845.0,0.87766076]
[1766155054834,0.20564155,846.63,844.28,0.20588183]
[1766155054835,0.20564155,846.63,845.07,0.87766076]
[1766155055036,0.20564155,846.63,845.09,0.87766076]
[1766155055237,0.20564155,846.63,845.12,0.87766076]
[1766155055933,0.20564155,846.63,845.14,0.87766076]
[1766155057237,0.20564155,846.63,845.12,0.87766076]
[1766155057533,0.20564155,846.63,845.04,0.87766076]
[1766155058233,0.20564155,846.63,845.02,0.87766076]
[1766155059836,0.20564155,846.63,845.03,0.87766076]
[1766155060736,0.20564155,846.63,845.02,0.87766076]
[1766155060937,0.20564155,846.63,845.0,0.87766076]
[1766155061438,0.20564155,846.63,844.28,0.20588183]
[1766155061439,0.20564155,846.63,844.89,0.87766076]
[1766155062339,0.20564155,846.63,845.12,0.87766076]
[1766155063140,0.20564155,846.63,845.11,0.87766076]
[1766155063340,0.20564155,846.63,845.12,0.87766076]
[1766155063635,0.20564155,846.63,845.11,0.87766076]
[1766155064841,0.20564155,846.63,845.12,0.87766076]